Cogmind - Beta 13 @@@ ROGUE MODE // 2024.07.05 @ 13:12:51 Player: Sionnis Result: Destroyed by D-53 Grenadier with Mini Grenade Launcher Performance ------------- Evolutions (0) 0 Regions Visited (2) 400 Robots Destroyed (23) 115 Value Destroyed (539) 539 Prototype IDs (0) 0 Alien Tech Used (0) 0 Bonus (-101) -101 TOTAL SCORE: 953 Bonus ------- Follower Combat Kills 60 Friendly Fire -161 Cogmind --------- Core Integrity 0/250 Matter 285/300 Energy 77/100 System Corruption 0% Temperature Cool (0) Movement Core (700) Ox13 Location -10/Mines Parts ------- > --- POWER (1) -------- (None) > --- PROPULSION (2) --- (None) > --- UTILITY (2) ------ High-capacity Storage Unit > --- WEAPON (2) ------- (None) > --- INVENTORY (20) --- Light Nuclear Core Light Treads Light Treads Improved Heat Sink Medium Storage Unit Signal Interpreter Armor Integrity Analyzer Hacking Suite Grenade Launcher Grenade Launcher Hammer Peak State ------------ > --- POWER ------------ Ion Engine > --- PROPULSION ------- Light Treads Light Treads > --- UTILITY ---------- Medium Storage Unit Targeting Computer > --- WEAPON ----------- Particle Gun Improved Light Cannon > --- INVENTORY -------- Light Nuclear Core Compact Wheel Improved Heat Sink Targeting Computer Hacking Suite Assault Rifle Grenade Launcher Grenade Launcher Hammer [Rating: 10] Favorites ----------- Power Ion Engine Engine Ion Engine Propulsion Light Treads Treads Light Treads Utility Targeting Computer Storage Medium Storage Unit Processor Targeting Computer Protection Light Armor Plating Weapon Improved Light Cannon Energy Gun EM Pulse Gun Ballistic Gun Assault Rifle Ballistic Cannon Improved Light Cannon Launcher Grenade Launcher Build | -11 -10 -10 ------- Run | Yrd Mat Min Slots Evolved . | . . . Power . | . . . Propulsion . | . . . Utility . | . . . Weapon . | . . . Parts Attached 22 | 6 7 9 Power 3 | 1 1 1 Engine 3 | 1 1 1 Core . | . . . Reactor . | . . . Propulsion 3 | 2 1 . Treads 3 | 2 1 . Leg . | . . . Wheel . | . . . Hover . | . . . Flight . | . . . Utility 6 | 1 2 3 Device . | . . . Storage 3 | 1 1 1 Processor 1 | . 1 . Hackware . | . . . Protection 2 | . . 2 Artifact . | . . . Weapon 10 | 2 3 5 Energy Gun 2 | 1 1 . Energy Cannon . | . . . Ballistic Gun 4 | 1 1 2 Ballistic Cannon 2 | . 1 1 Launcher 2 | . . 2 Special Weapon . | . . . Impact Weapon . | . . . Slashing Weapon . | . . . Piercing Weapon . | . . . Special Melee Weapon . | . . . Unidentified Prototypes . | . . . Parts Lost 10 | . 1 9 Power 1 | . . 1 Propulsion 2 | . . 2 Utility 2 | . . 2 Weapon 5 | . 1 4 Highest Loss Streak 7 | . 1 7 To Critical Strikes . | . . . Average Slot Usage (%) 99 | . 99 99 Engine 13 | . 14 13 Treads 27 | . 28 27 Storage 14 | . 14 14 Processor 8 | . 13 1 Protection 4 | . . 12 Energy Gun 13 | . 14 13 Ballistic Gun 5 | . 7 1 Ballistic Cannon 8 | . 6 12 Naked Turns . | . . . Heaviest Build 55 | 13 22 55 Greatest Support 40 | 40 40 40 Greatest Overweight (x) 1 | . . 1 Average Overweight (x) . | . . . Largest Inventory Capacity 20 | 8 10 20 Average Capacity 12 | 7 9 18 Most Carried 13 | 3 10 13 Average Carried 9 | 1 8 12 Final Capacity 20 | 8 10 20 Final Carried 11 | 3 10 11 Class Distribution -------------------- 100% | Mutant Dominant Class ---------------- Mutant | -10/Materials Mutant | -10/Mines Resources | -11 -10 -10 ----------- Run | Yrd Mat Min Matter Collected 653 | 240 203 210 Remotely . | . . . Salvage Created 859 | . 665 194 Parts 34 | . 27 7 Haulers Intercepted 1 | . 1 . Recyclers Shooed . | . . . Parts Field Recycled . | . . . Retrieved Matter . | . . . Parts Self-Destructed . | . . . Prevented . | . . . Kills | -11 -10 -10 ------- Run | Yrd Mat Min Combat Hostiles Destroyed 26 | . 9 17 Guns 12 | . 7 5 Cannons 7 | . 2 5 AOE 7 | . . 7 Classes Destroyed 8 | . 6 2 Hauler 1 | . 1 . Recycler 2 | . 2 . Mechanic 1 | . 1 . Operator 1 | . 1 . Watcher 1 | . 1 . Swarmer 6 | . . 6 Grunt 11 | . 9 2 Assembled 9 | . . 9 Best Kill Streak 9 | . 4 9 Combat Bots Only 9 | . 4 9 Max Kills in Single Turn 3 | . 1 3 Gunslinging . | . . . Exploded 3 | . . 3 Melee . | . . . Uniques/NPCs Destroyed . | . . . Combat | -11 -10 -10 -------- Run | Yrd Mat Min Hostile Shots Fired 101 | . 34 67 Missed 30 | . 7 23 Damage Taken 1332 | . 322 1010 Core 292 | . 56 236 Absorbed by Shields . | . . . Core Remaining (%) 100 | 100 . . Volleys Fired 74 | . 42 32 Largest 2 | . 2 2 Hottest 104 | . 104 104 Shots Fired 140 | . 84 56 Gun 91 | . 60 31 Cannon 42 | . 24 18 Launcher 7 | . . 7 Special . | . . . Kinetic 68 | . 42 26 Thermal 32 | . 9 23 Explosive 7 | . . 7 Electromagnetic 33 | . 33 . Robot Hit Streak 10 | . 10 5 Robot Miss Streak 6 | . 6 3 Penetration Max . | . . . Secondary Targets 1 | . 1 . Max Gunslinging Chain 1 | . 1 . Shots Hit Robots 87 | . 57 30 Core Hits 51 | . 25 26 Critical Kills . | . . . Critical Parts Destroyed . | . . . Critical Strikes 4 | . 2 2 Burn 2 | . 1 1 Blast 1 | . . 1 Corrupt 1 | . 1 . Melee Attacks . | . . . Impact . | . . . Slashing . | . . . Piercing . | . . . Sneak Attacks . | . . . Combat Hostiles . | . . . Follow-up Attacks . | . . . Damage Inflicted 2196 | . 954 1242 Guns 862 | . 559 303 Cannons 626 | . 352 274 Explosions 708 | . 43 665 Melee . | . . . Ramming . | . . . Kinetic 789 | . 457 332 Thermal 401 | . 156 245 Explosive 665 | . . 665 Electromagnetic 341 | . 341 . Impact . | . . . Slashing . | . . . Piercing . | . . . Highest Corruption . | . . . Average Corruption . | . . . Corruption Purged . | . . . Corruption Blocked . | . . . Overload Shots . | . . . Overflow Damage 54 | . 12 42 Projectiles 12 | . 12 . Explosions 42 | . . 42 Melee . | . . . Knockbacks 10 | . 5 5 Impact . | . . . Kinetic 10 | . 5 5 Secondary . | . . . Self-Inflicted Damage 24 | . . 24 Shots 1 | . . 1 Rammed . | . . . Targets Rammed . | . . . Kicked . | . . . Crushed . | . . . Highest Temperature 216 | . 146 216 Average Temperature 52 | . 33 75 Received Heat Transfer 192 | . 177 15 Siege Activations . | . . . Robots Corrupted . | . . . Combat Hostiles . | . . . Parts Fried . | . . . Impact Corruptions . | . . . Robots Melted . | . . . Combat Hostiles . | . . . Parts Melted 1 | . . 1 Heat Transferred 1062 | . 433 629 Parts Sabotaged . | . . . Parts Stolen . | . . . Parts Stripped . | . . . Power Chain Reactions 1 | . 1 . Alert | -11 -10 -10 ------- Run | Yrd Mat Min Peak Influence 215 | . 176 215 Initial 24 | . . 24 Average 69 | . 71 71 Maximum Alert Level 1 | . . 1 Low Security (%) 96 | 100 100 89 Level 1 3 | . . 10 Level 2 . | . . . Level 3 . | . . . Level 4 . | . . . Level 5 . | . . . High Security . | . . . Max Security . | . . . Squads Dispatched 2 | . 2 . Investigation 2 | . 2 . Extermination . | . . . Reinforcement . | . . . Assault . | . . . Garrison . | . . . Intercept . | . . . Searches Triggered . | . . . Construction Impeded . | . . . Haulers Reinforced . | . . . Active Scanning Responses . | . . . Cargo Convoy Interrupts . | . . . Stealth | -11 -10 -10 --------- Run | Yrd Mat Min Distress Signals 1 | . 1 . Communications Jammed . | . . . Distress Signals . | . . . Times Spotted 50 | . 23 27 Peak Tracking Total 13 | . 4 13 Tactical Retreats . | . . . Traps | -11 -10 -10 ------- Run | Yrd Mat Min Traps Triggered . | . . . Indirectly . | . . . Trap Hack Attempts . | . . . Triggered . | . . . Disarmed . | . . . Reprogrammed . | . . . Reused . | . . . Traps Extracted . | . . . Installed . | . . . Triggered . | . . . Machines | -11 -10 -10 ---------- Run | Yrd Mat Min Machines Disabled 2 | . 2 . Max in Single Turn 1 | . 1 . Machines Repaired . | . . . Machines Dismantled . | . . . Machines Sabotaged . | . . . Overloaded Fab Kills . | . . . Hacking | -11 -10 -10 --------- Run | Yrd Mat Min Machines Accessed 8 | . 8 . Terminals 6 | . 6 . Fabricators . | . . . Repair Stations . | . . . Recycling Units 2 | . 2 . Scanalyzers . | . . . Garrison Access . | . . . Total Hacks 19 | . 19 . Successful 7 | . 7 . Failed 11 | . 11 . Catastrophic 2 | . 2 . Database Lockouts 1 | . 1 . Manual 11 | . 11 . Terminals 14 | . 14 . Fabricators . | . . . Repair Stations . | . . . Recycling Units 5 | . 5 . Scanalyzers . | . . . Garrison Access . | . . . Terminal Hacks 4 | . 4 . Robot Analysis 3 | . 3 . Hauler Manifests 1 | . 1 . Fabricator Hacks . | . . . Repair Station Hacks . | . . . Recycling Unit Hacks 2 | . 2 . Retrieve Components 2 | . 2 . Scanalyzer . | . . . Garrison Access Hacks . | . . . Unauthorized Hacks 1 | . 1 . Terminals 1 | . 1 . Botnet 1 | . 1 . Fabricators . | . . . Repair Stations . | . . . Recycling Units . | . . . Scanalyzers . | . . . Garrison Access . | . . . Data Cores Recovered 1 | . 1 . Used . | . . . Hacking Detections 8 | . 8 . Full Trace Events 2 | . 2 . Feedback Events . | . . . Feedback Blocked . | . . . Robot Schematics Acquired . | . . . Robots Built . | . . . Authchips . | . . . Time . | . . . Total Robot Build Rating . | . . . Part Schematics Acquired . | . . . Parts Built . | . . . Authchips . | . . . Time . | . . . Total Part Build Rating . | . . . Parts Repaired . | . . . Time . | . . . Parts Recycled . | . . . Recycled Matter . | . . . Retrieved Matter . | . . . Retrieved Components 10 | . 10 . Parts Scanalyzed . | . . . Part Schematics Acquired . | . . . Parts Damaged . | . . . Bothacking | -11 -10 -10 ------------ Run | Yrd Mat Min Used RIF Installer . | . . . Robots Hacked . | . . . Non-combat . | . . . Combat . | . . . Robot Hacks Applied . | . . . Relay Couplers Released . | . . . Fabnet Peak Effective % . | . . . Robots Rewired 1 | . 1 . Allies Hacked . | . . . Hacks Repelled . | . . . Allies | -11 -10 -10 -------- Run | Yrd Mat Min Total Allies 4 | . 1 3 Largest Group 3 | . 1 3 Highest-Rated Group 40 | . 16 40 Highest-Rated Ally 16 | . 16 16 Total Orders . | . . . Ally Attacks 19 | . 10 9 Total Damage 246 | . 140 106 Kills 3 | . 3 . Allies Corrupted . | . . . Allies Melted . | . . . Intel | -11 -10 -10 ------- Run | Yrd Mat Min Robot Analysis Total 3 | . 3 . Derelict Logs Recovered 3 | . . 3 Drone Launches . | . . . Drone Recoveries . | . . . Exploration | -11 -10 -10 ------------- Run | Yrd Mat Min Turns Passed 2081 | 69 1283 729 Spaces Moved 971 | 40 661 270 Core 5 | 5 . . Treads 966 | 35 661 270 Legs . | . . . Wheels . | . . . Hover . | . . . Flight . | . . . Fastest Speed 50 | 50 160 160 Average Speed 178 | 146 160 228 Slowest Speed 240 | 160 160 240 Overloaded Moves . | . . . Propulsion Burnouts . | . . . Robots Hopped . | . . . Cave-ins Triggered . | . . . Exploration Rate (%) 53 | 3 99 58 Regions Visited 2 Branch Regions 1 Pre-discovered Areas . | . . . Known Exits Taken . | . . . Unknown Exits Taken 2 | 1 1 . Scrap Searched 1 | . . 1 Spaces Dug . | . . . Terrain Destroyed 49 | . 5 44 Melee . | . . . Projectile 4 | . 2 2 AOE 45 | . 3 42 Terrain Rammed . | . . . Walls Destroyed . | . . . Machines Disabled . | . . . Actions | -11 -10 -10 --------- Run | Yrd Mat Min Total 1184 | 48 808 328 Wait 65 | . 57 8 Move 969 | 39 660 270 Hop . | . . . Pick Up 22 | 3 14 5 Fast Attach 9 | 6 2 1 Attach 4 | . 1 3 Detach . | . . . Swap 9 | . 4 5 Drop 13 | . 9 4 Fire 74 | . 42 32 Melee . | . . . Ram . | . . . Kick . | . . . Crush . | . . . Escape Stasis . | . . . Rewire 19 | . 19 . Trap . | . . . Miscellaneous . | . . . Route ------- -11/Scrapyard -10/Materials (discovered 5 exits: [*Mat x3] / [*Min] / [*Sub]) -10/Mines History --------- Turn | Location | Event 41 | -11/Scrapyard | Discovered new exit (range 14) 70 | -11/Scrapyard | Entered Materials 337 | -10/Materials | Build established: Mutant 430 | -10/Materials | Discovered new exit (range 11) 648 | -10/Materials | Discovered new exit (range 15) 771 | -10/Materials | Discovered new exit (range 12) 1016 | -10/Materials | Central database locked down 1112 | -10/Materials | Discovered new exit (range 16) 1314 | -10/Materials | Discovered new exit (range 13) 1353 | -10/Materials | Entered Mines 1631 | -10/Mines | Learned Materials garrison access intel 1745 | -10/Mines | Assisted by bots powering up and referring to "LRC-V3" 1781 | -10/Mines | Learned location of 1 exit from Materials 1986 | -10/Mines | Assembled infested the area 1991 | -10/Mines | Assisted by a Guerilla fighting off Assembled 2045 | -10/Mines | Lost 4 allies 2053 | -10/Mines | Destroyed 9 combat bots 2075 | -10/Mines | Core integrity fell below 50% 2079 | -10/Mines | Core integrity fell below 20% 2082 | -10/Mines | Destroyed by D-53 Grenadier with Mini Grenade Launcher Last Messages --------------- The unstable cave ceiling collapses. Acquired 80 matter. Acquired 3 matter. Dropped Ion Engine. The unstable cave ceiling collapses. Acquired 10 matter. The unstable cave ceiling collapses. Acquired Armor Integrity Analyzer. Acquired 3 matter. Lgt. Treads destroyed. Destroyed Shock Absorption System. The unstable cave ceiling collapses. Lgt. Armor Plating destroyed. Lgt. Treads destroyed. The unstable cave ceiling collapses. Particle Gun destroyed. Ion Engine destroyed. The unstable cave ceiling collapses. Assault Rifle destroyed. Lgt. Assault Rifle destroyed. Map ----- +----------------------------------------------------+ | | | | | | | | | | | | | | | | | | | | | | | ?????????????????????????????????????????????????? | | ?????????????????????????????????????????????????? | | ?????????????????????????????????????????????????? | | ???????????????????##????#???????????????????????? | | ???????????????????? ???s ???????????????????????? | | ???????????????????"" """s???????????????????????? | | ????????????????????" """ ???????????????????????? | | ????????????????????? """ ####???????????????????? | | ????????????????????? # ##???????????####???? | | ?????????????????????? #????????#### ##??? | | ?????????????????????##sT ##???##### #??? | | ?????????????????##### ##??# #??? | | ?????????????????# # #??# #???? | | ?????????????????# * #### ##???? | | ?????????????????# @ ## #????? | | ?????????????????# ##???? | | ???????????? % dd #???? | | ??????????? #???? | | ??????????? ### # # !#???? | | ?????????????????# # ######### ! #???? | | ???????????????? ##????????# #???? | | ??????????????# "???????????# = ### #???? | | ????????????? ??????????????# ##?## ##??? | | ????????????? ??????????????# ##???# ! ##?? | | ???????????????????????????# ##????## ### | | ???????????????????????????# = ##??###### | | ???????????????????????????## ##??## ! | | ????????????????????????????###???## | | ??????????????????????????????????# #### #### | | ??????????????????????????????????# ##?## #??? | | ????????????????????????????????#### ##?# #??? | | ????????????????????????????????# ### #??? | | ????????????????????????????????# ## #??? | | ??????????????????????########??# ## #??? | | ???????????? ?????????# #??##### ### #??? | | ?????????? ????????# #????## ### #??? | | ???????# ???????# #???## ### #??? | | ??????## ???????# ##### *%= ##?# ##??? | | ??????? ???????# %% #??# #???? | +----------------------------------------------------+ Best States ------------- Heat Dissipation 25 Energy Generation 10 Energy Capacity 250 Matter Stores 300 Matter Capacity 300 Sight Range 16 Terrain Scan Density 10 Armor Coverage 150 Evasion (%) 40 Targeting Accuracy 5 Recoil Reduction 2 Item Schematics ----------------- None Robot Schematics ------------------ None Fabricated ------------ Nothing Alien Tech Used ----------------- None Achievements -------------- None Challenges ------------ None Game ------ Seed AngularMissileAutohacker Manual? 0 Play Time 00:15:48 Cumulative 279.0 hours Start 2024.07.05 @ 12:45:35 End 2024.07.05 @ 13:12:51 Sessions 1 Manual Loads 0 Difficulty Rogue Special Mode None Game No. 225 Rogue 225 Adventurer 0 Explorer 0 Win Type - Total 23 Types 17/1/2/1/1/0/0/1/0 Lore% 77 Gallery% 86 Achievement% 89 Wizard Run 0 Options --------- Layout 1 ASCII 0 Keyboard 0 Movement Numpad Keybinds 0 Fullscreen 1 Font 24/Smallcaps Map View 50x35 Zoom Use 0% Tactical HUD 1 Map Filters NONE Filters NONE Steam 1 RUN: 901e5e93-d6c2-45d3-aa13-0b2d31c80b0e